{"text_format":"3","workbook":"xlsx","n_sheets":1,"sheets":["Vypočet půjček"],"not_rendered":{"defined_names":8},"read":"whole","date_system":"1900"}

{"sheet":"Vypočet půjček","index":0,"n_rows":22,"n_cols":13,"rows_kept":22,"merged":[[1,1,1,3],[1,6,2,8],[1,11,2,12],[2,1,2,3],[6,5,6,6],[7,5,7,6],[10,2,10,5],[10,6,10,8],[10,9,10,12],[18,2,18,12]]}
[]
[null,"VÝPOČET VYSOKOŠKOLSKÝCH ",{"$nulls":4},{"v":50000,"d":"50,000 Kč"},{"$nulls":4},"2011-05-10"]
[null,"PŮJČEK "]
[]
[null," Předpokládá se, že celkové měsíční splátky studentských půjček nepřekročí 8 % vašeho prvního ročního příjmu."]
[]
[null,null,"Aktuální kombinovaná měsíční platba:",null,null,{"$f":"VysokoškolskéPůjčky[[#Totals],[Aktuální měsíční platba]]","v":{"v":328.58590726058833,"d":"328.59 Kč"}},null,null,"Plánovaná kombinovaná měsíční platba:",{"$nulls":3},{"$f":"VysokoškolskéPůjčky[[#Totals],[Plánovaná platba]]","v":{"v":328.58590726058833,"d":"328.59 Kč"}}]
[null,null,"Procento měsíčního příjmu:",null,null,{"$f":"VysokoškolskéPůjčky[[#Totals],[Aktuální měsíční platba]]/OdhadovanýMěsíčníPříjem","v":{"v":0.07886061774254119,"d":"7.89%"}},null,null,"  Procento měsíčního příjmu:",{"$nulls":3},{"$f":"VysokoškolskéPůjčky[[#Totals],[Plánovaná platba]]/OdhadovanýMěsíčníPříjem","v":{"v":0.07886061774254119,"d":"7.89%"}}]
[]
[]
[null,null,"OBECNÉ PODROBNOSTI PŮJČEK",{"$nulls":3},"DATA SPLATNOSTI PŮJČEK",null,null,"PODROBNOSTI SPLÁCENÍ"]
[null,null,"Číslo půjčky","Věřitel","Částka půjčky","Roční úroková sazba","Počáteční datum","Délka (roky)","Koncové datum","Aktuální měsíční platba","Celkový úrok","Plánovaná platba","Roční platba"]
[null,null,"10998M88","Věřitel 1",{"v":10000,"d":"10,000.00 Kč"},{"v":0.05,"d":"5.00%"},"2011-04-01",10,{"$f":"IF(AND(VysokoškolskéPůjčky[[#This Row],[Počáteční datum]]>0,VysokoškolskéPůjčky[[#This Row],[Délka (roky)]]>0),EDATE(VysokoškolskéPůjčky[[#This Row],[Počáteční datum]],VysokoškolskéPůjčky[[#This Row],[Délka (roky)]]*12),\"\")","v":"2021-04-01"},{"$f":"IF(AND(PůjčkaZačátekDnes,COUNT(VysokoškolskéPůjčky[[#This Row],[Částka půjčky]]:VysokoškolskéPůjčky[[#This Row],[Délka (roky)]])=4,VysokoškolskéPůjčky[[#This Row],[Počáteční datum]]<TODAY()),PMT(VysokoškolskéPůjčky[[#This Row],[Roční úroková sazba]]/12,VysokoškolskéPůjčky[[#This Row],[Délka (roky)]]*12,-VysokoškolskéPůjčky[[#This Row],[Částka půjčky]],0,0),\"\")","v":{"v":106.06551523907524,"d":"106.07 Kč"}},{"$f":"IFERROR((VysokoškolskéPůjčky[[#This Row],[Plánovaná platba]]*(VysokoškolskéPůjčky[[#This Row],[Délka (roky)]]*12))-VysokoškolskéPůjčky[[#This Row],[Částka půjčky]],\"\")","v":{"v":2727.8618286890287,"d":"2,727.86 Kč"}},{"$f":"IF(COUNTA(VysokoškolskéPůjčky[[#This Row],[Částka půjčky]]:VysokoškolskéPůjčky[[#This Row],[Délka (roky)]])<>4,\"\",PMT(VysokoškolskéPůjčky[[#This Row],[Roční úroková sazba]]/12,VysokoškolskéPůjčky[[#This Row],[Délka (roky)]]*12,-VysokoškolskéPůjčky[[#This Row],[Částka půjčky]],0,0))","v":{"v":106.06551523907524,"d":"106.07 Kč"}},{"$f":"IFERROR(VysokoškolskéPůjčky[[#This Row],[Plánovaná platba]]*12,\"\")","v":{"v":1272.7861828689029,"d":"1,272.79 Kč"}}]
[null,null,"20987N87","Věřitel 2",{"v":8000,"d":"8,000.00 Kč"},{"v":0.05,"d":"5.00%"},"2011-05-01",10,{"$f":"IF(AND(VysokoškolskéPůjčky[[#This Row],[Počáteční datum]]>0,VysokoškolskéPůjčky[[#This Row],[Délka (roky)]]>0),EDATE(VysokoškolskéPůjčky[[#This Row],[Počáteční datum]],VysokoškolskéPůjčky[[#This Row],[Délka (roky)]]*12),\"\")","v":"2021-05-01"},{"$f":"IF(AND(PůjčkaZačátekDnes,COUNT(VysokoškolskéPůjčky[[#This Row],[Částka půjčky]]:VysokoškolskéPůjčky[[#This Row],[Délka (roky)]])=4,VysokoškolskéPůjčky[[#This Row],[Počáteční datum]]<TODAY()),PMT(VysokoškolskéPůjčky[[#This Row],[Roční úroková sazba]]/12,VysokoškolskéPůjčky[[#This Row],[Délka (roky)]]*12,-VysokoškolskéPůjčky[[#This Row],[Částka půjčky]],0,0),\"\")","v":{"v":84.85241219126019,"d":"84.85 Kč"}},{"$f":"IFERROR((VysokoškolskéPůjčky[[#This Row],[Plánovaná platba]]*(VysokoškolskéPůjčky[[#This Row],[Délka (roky)]]*12))-VysokoškolskéPůjčky[[#This Row],[Částka půjčky]],\"\")","v":{"v":2182.289462951223,"d":"2,182.29 Kč"}},{"$f":"IF(COUNTA(VysokoškolskéPůjčky[[#This Row],[Částka půjčky]]:VysokoškolskéPůjčky[[#This Row],[Délka (roky)]])<>4,\"\",PMT(VysokoškolskéPůjčky[[#This Row],[Roční úroková sazba]]/12,VysokoškolskéPůjčky[[#This Row],[Délka (roky)]]*12,-VysokoškolskéPůjčky[[#This Row],[Částka půjčky]],0,0))","v":{"v":84.85241219126019,"d":"84.85 Kč"}},{"$f":"IFERROR(VysokoškolskéPůjčky[[#This Row],[Plánovaná platba]]*12,\"\")","v":{"v":1018.2289462951222,"d":"1,018.23 Kč"}}]
[null,null,"36785LM","Věřitel 3",{"v":6000,"d":"6,000.00 Kč"},{"v":0.045,"d":"4.50%"},"2012-03-01",10,{"$f":"IF(AND(VysokoškolskéPůjčky[[#This Row],[Počáteční datum]]>0,VysokoškolskéPůjčky[[#This Row],[Délka (roky)]]>0),EDATE(VysokoškolskéPůjčky[[#This Row],[Počáteční datum]],VysokoškolskéPůjčky[[#This Row],[Délka (roky)]]*12),\"\")","v":"2022-03-01"},{"$f":"IF(AND(PůjčkaZačátekDnes,COUNT(VysokoškolskéPůjčky[[#This Row],[Částka půjčky]]:VysokoškolskéPůjčky[[#This Row],[Délka (roky)]])=4,VysokoškolskéPůjčky[[#This Row],[Počáteční datum]]<TODAY()),PMT(VysokoškolskéPůjčky[[#This Row],[Roční úroková sazba]]/12,VysokoškolskéPůjčky[[#This Row],[Délka (roky)]]*12,-VysokoškolskéPůjčky[[#This Row],[Částka půjčky]],0,0),\"\")","v":{"v":62.18304525420918,"d":"62.18 Kč"}},{"$f":"IFERROR((VysokoškolskéPůjčky[[#This Row],[Plánovaná platba]]*(VysokoškolskéPůjčky[[#This Row],[Délka (roky)]]*12))-VysokoškolskéPůjčky[[#This Row],[Částka půjčky]],\"\")","v":{"v":1461.9654305051017,"d":"1,461.97 Kč"}},{"$f":"IF(COUNTA(VysokoškolskéPůjčky[[#This Row],[Částka půjčky]]:VysokoškolskéPůjčky[[#This Row],[Délka (roky)]])<>4,\"\",PMT(VysokoškolskéPůjčky[[#This Row],[Roční úroková sazba]]/12,VysokoškolskéPůjčky[[#This Row],[Délka (roky)]]*12,-VysokoškolskéPůjčky[[#This Row],[Částka půjčky]],0,0))","v":{"v":62.18304525420918,"d":"62.18 Kč"}},{"$f":"IFERROR(VysokoškolskéPůjčky[[#This Row],[Plánovaná platba]]*12,\"\")","v":{"v":746.1965430505102,"d":"746.20 Kč"}}]
[null,null,"765R43","Věřitel 4",{"v":4000,"d":"4,000.00 Kč"},{"v":0.05,"d":"5.00%"},"2012-05-01",5,{"$f":"IF(AND(VysokoškolskéPůjčky[[#This Row],[Počáteční datum]]>0,VysokoškolskéPůjčky[[#This Row],[Délka (roky)]]>0),EDATE(VysokoškolskéPůjčky[[#This Row],[Počáteční datum]],VysokoškolskéPůjčky[[#This Row],[Délka (roky)]]*12),\"\")","v":"2017-05-01"},{"$f":"IF(AND(PůjčkaZačátekDnes,COUNT(VysokoškolskéPůjčky[[#This Row],[Částka půjčky]]:VysokoškolskéPůjčky[[#This Row],[Délka (roky)]])=4,VysokoškolskéPůjčky[[#This Row],[Počáteční datum]]<TODAY()),PMT(VysokoškolskéPůjčky[[#This Row],[Roční úroková sazba]]/12,VysokoškolskéPůjčky[[#This Row],[Délka (roky)]]*12,-VysokoškolskéPůjčky[[#This Row],[Částka půjčky]],0,0),\"\")","v":{"v":75.48493457604374,"d":"75.48 Kč"}},{"$f":"IFERROR((VysokoškolskéPůjčky[[#This Row],[Plánovaná platba]]*(VysokoškolskéPůjčky[[#This Row],[Délka (roky)]]*12))-VysokoškolskéPůjčky[[#This Row],[Částka půjčky]],\"\")","v":{"v":529.0960745626244,"d":"529.10 Kč"}},{"$f":"IF(COUNTA(VysokoškolskéPůjčky[[#This Row],[Částka půjčky]]:VysokoškolskéPůjčky[[#This Row],[Délka (roky)]])<>4,\"\",PMT(VysokoškolskéPůjčky[[#This Row],[Roční úroková sazba]]/12,VysokoškolskéPůjčky[[#This Row],[Délka (roky)]]*12,-VysokoškolskéPůjčky[[#This Row],[Částka půjčky]],0,0))","v":{"v":75.48493457604374,"d":"75.48 Kč"}},{"$f":"IFERROR(VysokoškolskéPůjčky[[#This Row],[Plánovaná platba]]*12,\"\")","v":{"v":905.8192149125249,"d":"905.82 Kč"}}]
[null,null,"Součty",null,{"$f":"SUBTOTAL(109,VysokoškolskéPůjčky[Částka půjčky])","v":{"v":28000,"d":"28,000.00 Kč"}},{"$nulls":4},{"$f":"SUBTOTAL(109,VysokoškolskéPůjčky[Aktuální měsíční platba])","v":{"v":328.58590726058833,"d":"328.59 Kč"}},{"$f":"SUBTOTAL(109,VysokoškolskéPůjčky[Celkový úrok])","v":{"v":6901.212796707978,"d":"6,901.21 Kč"}},{"$f":"SUBTOTAL(109,VysokoškolskéPůjčky[Plánovaná platba])","v":{"v":328.58590726058833,"d":"328.59 Kč"}},{"$f":"SUBTOTAL(109,VysokoškolskéPůjčky[Roční platba])","v":{"v":3943.03088712706,"d":"3,943.03 Kč"}}]
[null,null,"Průměry",null,{"$f":"AVERAGE(VysokoškolskéPůjčky[Částka půjčky])","v":{"v":7000,"d":"7,000.00 Kč"}},{"$f":"AVERAGE(VysokoškolskéPůjčky[Roční úroková sazba])","v":{"v":0.04875,"d":"4.88%"}},{"$nulls":4},{"$f":"AVERAGE(VysokoškolskéPůjčky[Celkový úrok])","v":{"v":1725.3031991769944,"d":"1,725.30 Kč"}},null,{"$f":"AVERAGE(VysokoškolskéPůjčky[Roční platba])","v":{"v":985.757721781765,"d":"985.76 Kč"}}]
[]
[{"$nulls":10},"Celková sloučená splatná částka:",null,{"$f":"VysokoškolskéPůjčky[[#Totals],[Částka půjčky]]+VysokoškolskéPůjčky[[#Totals],[Celkový úrok]]","v":{"v":34901.21279670798,"d":"34,901.21 Kč"}}]
[]
[{"$nulls":10},"Odhadovaný měsíční příjem po dostudování:",null,{"$f":"(OdhadovanýRočníPříjem/12)","v":{"v":4166.666666666667,"d":"4,166.67 Kč"}}]